[Event "LEM Niedersachsen-A-Open 2025"]
[Site "Verden"]
[Date "2025.01.04"]
[Round "6.7"]
[White "Hilker, Bjoern"]
[Black "Moeller, Tom"]
[Result "1-0"]
[ECO "B22"]
[WhiteElo "1993"]
[BlackElo "1802"]
[Annotator "NA RC"]
[PlyCount "35"]
[EventDate "2024.12.27"]
[EventType "swiss"]
[EventCountry "GER"]
[SourceTitle "playchess.com"]
[Source "ChessBase"]
[SourceQuality "1"]
[TimeControl "40/5400+30:1800+30"]

1. e4 {[%emt 0:00:02]} c5 {[%emt 0:00:04]} 2. d4 {[%emt 0:00:05]} cxd4 {[%emt 0:01:29]} 3. c3 {[%emt 0:00:05]} d5 {[%emt 0:00:24]} 4. exd5 {[%emt 0:01:05]} Qxd5 {[%emt 0:00:09]} 5. cxd4 {[%emt 0:01:41]} Nc6 {[%emt 0:00:55]} 6. Nf3 {[%emt 0:00:51]} Bf5 {[%emt 0:03:07]} 7. Nc3 {[%emt 0:00:25]} Qa5 {[%emt 0:03:49]} 8. d5 {[%emt 0:10:18]} Rd8 {[%emt 0:04:49]} 9. Qb3 {[%emt 0:00:56]} Nb4 {[%emt 0:02:26]} 10. Bb5+ {[%emt 0:06:03]} Bd7 {[%emt 0:00:49]} 11. Bxd7+ {[%emt 0:02:49]} Rxd7 {[%emt 0:00:07]} 12. O-O {[%emt 0:00:50]} Nf6 {[%emt 0:23:04]} 13. Ne5 {[%emt 0:01:40]} Rc7 {[%emt 0:06:23]} 14. Nxf7 {[%emt 0:05:00]} Rg8 {[%emt 0:02:02]} 15. d6 {[%emt 0:03:09]} exd6 {[%emt 0:01:26]} 16. Qe6+ {[%emt 0:09:41]} Be7 {[%emt 0:00:04]} 17. Nxd6+ {[%emt 0:01:04]} Kd8 {[%emt 0:00:03]} 18. Rd1 {[%emt 0:07:03]} 1-0

[Event "LEM Niedersachsen-A-Open 2025"]
[Site "Verden"]
[Date "2025.01.04"]
[Round "6.8"]
[White "Freise, Linus"]
[Black "Scheffner, Jarno"]
[Result "0-1"]
[ECO "B25"]
[WhiteElo "1723"]
[BlackElo "1925"]
[Annotator "RC"]
[PlyCount "142"]
[EventDate "2024.12.27"]
[EventType "swiss"]
[EventCountry "GER"]
[SourceTitle "playchess.com"]
[Source "ChessBase"]
[SourceQuality "1"]
[TimeControl "40/5400+30:1800+30"]

1. e4 {[%emt 0:00:09]} c5 {[%emt 0:00:17]} 2. Nc3 {[%emt 0:00:10]} d6 {[%emt 0:00:20]} 3. Nge2 {[%emt 0:00:18]} Nf6 {[%emt 0:00:19]} 4. g3 {[%emt 0:00:40]} g6 {[%emt 0:00:26]} 5. Bg2 {[%emt 0:00:11]} Bg7 {[%emt 0:00:07]} 6. O-O {[%emt 0:06:53]} Nc6 {[%emt 0:00:13]} 7. d3 {[%emt 0:01:23]} O-O {[%emt 0:00:33]} 8. Rb1 {[%emt 0:02:01]} Bd7 {[%emt 0:02:50]} 9. h3 {[%emt 0:04:09]} Qa5 {[%emt 0:04:53]} 10. a3 {[%emt 0:03:04]} b5 {[%emt 0:00:13]} 11. Bd2 {[%emt 0:05:44]} Qb6 {[%emt 0:02:22]} 12. Be3 {[%emt 0:02:52]} b4 {[%emt 0:11:30]} 13. axb4 {[%emt 0:01:48]} Qxb4 {[%emt 0:00:09]} 14. Nd5 {[%emt 0:03:30]} Nxd5 {[%emt 0:11:33]} 15. exd5 {[%emt 0:00:38]} Nd8 {[%emt 0:07:44]} 16. Bd2 {[%emt 0:06:56]} Qb7 {[%emt 0:01:36]} 17. Bc3 {[%emt 0:00:08]} Bxc3 {[%emt 0:01:49]} 18. Nxc3 {[%emt 0:01:02]} Qc8 {[%emt 0:01:48]} 19. Kh2 {[%emt 0:00:39]} Rb8 {[%emt 0:00:14]} 20. b3 {[%emt 0:02:54]} f6 {[%emt 0:03:39]} 21. Qd2 {[%emt 0:03:40]} Nf7 {[%emt 0:00:19]} 22. Rbe1 {[%emt 0:03:44]} Re8 {[%emt 0:00:37]} 23. Ne4 {[%emt 0:02:17]} Kg7 {[%emt 0:02:23]} 24. Qc3 {[%emt 0:05:15]} Rb4 {[%emt 0:05:25]} 25. Re3 {[%emt 0:10:09]} a5 {[%emt 0:01:14]} 26. Rfe1 {[%emt 0:01:19]} a4 {[%emt 0:02:03]} 27. bxa4 {[%emt 0:00:57]} Rxa4 {[%emt 0:02:48]} 28. Nd2 {[%emt 0:05:15]} Kf8 {[%emt 0:00:16]} 29. Nc4 {[%emt 0:01:15]} Qa6 {[%emt 0:01:17]} 30. Rb1 {[%emt 0:02:56]} Bb5 {[%emt 0:00:52]} 31. Nd2 {[%emt 0:03:07]} Rc8 {[%emt 0:10:46]} 32. Rbe1 {[%emt 0:04:41]} Rc7 {[%emt 0:01:25]} 33. Ne4 {[%emt 0:02:41]} Qa5 {[%emt 0:00:55]} 34. Rb1 {[%emt 0:03:16]} Rb7 {[%emt 0:02:56]} 35. Qe1 {[%emt 0:07:01]} Qxe1 {[%emt 0:00:59]} 36. Rbxe1 {[%emt 0:00:38]} Ba6 {[%emt 0:00:34]} 37. c4 {[%emt 0:01:04]} Ra2 {[%emt 0:02:27]} 38. Kg1 {[%emt 0:02:11]} Rb3 {[%emt 0:02:13]} 39. f4 {[%emt 0:02:53]} Raa3 {[%emt 0:02:14]} 40. Bf1 {[%emt 0:00:25]} h5 {[%emt 0:08:44]} 41. Nd2 {[%emt 0:07:09]} Rb7 {[%emt 0:00:11]} 42. Rc1 {[%emt 0:13:36]} Nh6 {[%emt 0:00:24]} 43. Ne4 {[%emt 0:00:36]} Nf5 {[%emt 0:00:38]} 44. Ree1 {[%emt 0:00:27]} Nd4 {[%emt 0:07:33]} 45. Ra1 {[%emt 0:00:59]} Rb2 {[%emt 0:02:29]} 46. Bg2 {[%emt 0:01:17]} Rxa1 {[%emt 0:08:54]} 47. Rxa1 {[%emt 0:00:16]} Bb7 {[%emt 0:00:04]} 48. Rd1 {[%emt 0:01:32]} Ne2+ {[%emt 0:01:26]} 49. Kh2 {[%emt 0:00:19]} h4 {[%emt 0:00:10]} 50. gxh4 {[%emt 0:04:30]} Nxf4 {[%emt 0:00:11]} 51. Rd2 {[%emt 0:00:11]} Rxd2 {[%emt 0:01:03]} 52. Nxd2 {[%emt 0:00:04]} Nxd3 {[%emt 0:00:07]} 53. Be4 {[%emt 0:00:43]} Ne5 {[%emt 0:00:08]} 54. Bg2 {[%emt 0:03:12]} Ba6 {[%emt 0:02:51]} 55. Bf1 {[%emt 0:00:19]} Bc8 {[%emt 0:04:41]} 56. Kg3 {[%emt 0:00:27]} Kg7 {[%emt 0:00:14]} 57. Kf4 {[%emt 0:01:19]} Kh6 {[%emt 0:00:51]} 58. Ne4 {[%emt 0:00:57]} Kh5 {[%emt 0:01:57]} 59. Kg3 {[%emt 0:00:05]} Bf5 {[%emt 0:00:21]} 60. Be2+ {[%emt 0:00:43]} Kh6 {[%emt 0:00:11]} 61. Nf2 {[%emt 0:02:26]} Nd7 {[%emt 0:01:05]} 62. Kf4 {[%emt 0:00:00]} Bb1 {[%emt 0:01:06]} 63. Ng4+ {[%emt 0:00:15]} Kg7 {[%emt 0:00:19]} 64. Ne3 {[%emt 0:00:17]} Ne5 {[%emt 0:00:32]} 65. h5 {[%emt 0:00:32]} Bd3 {[%emt 0:00:35]} 66. Bxd3 {[%emt 0:00:35]} Nxd3+ {[%emt 0:00:03]} 67. Kg4 {[%emt 0:00:13]} Ne5+ {[%emt 0:00:14]} 68. Kh4 {[%emt 0:00:52]} g5+ {[%emt 0:03:46]} 69. Kg3 {[%emt 0:00:05]} Kh6 {[%emt 0:00:05]} 70. h4 {[%emt 0:00:34]} Kxh5 {[%emt 0:00:18]} 71. hxg5 {[%emt 0:00:05]} Kxg5 {[%emt 0:00:28]} 0-1

[Event "LEM Niedersachsen-A-Open 2025"]
[Site "Verden"]
[Date "2025.01.04"]
[Round "6.9"]
[White "Gottschalk, Siegfried"]
[Black "Reimer, Philip"]
[Result "0-1"]
[ECO "A21"]
[WhiteElo "1936"]
[BlackElo "2131"]
[Annotator "TA"]
[PlyCount "82"]
[EventDate "2024.12.27"]
[EventType "swiss"]
[EventCountry "GER"]
[SourceTitle "playchess.com"]
[Source "ChessBase"]
[SourceQuality "1"]
[TimeControl "40/5400+30:1800+30"]

{[%evp 9,82,5,12,12,30,22,28,22,37,45,46,27,35,31,35,43,48,50,49,20,55,49,52,29,68,54,45,16,20,17,29,19,51,47,56,51,44,42,43,45,50,59,65,77,66,0,0,0,0,-3,-5,0,0,-41,-26,-64,-72,-92,-93,-93,-87,-96,-85,-96,-102,-88,-63,-448,-432,-595,-591,-1394,-1525,-1303,-1056]} 1. c4 {[%emt 0:00:02]} e5 {[%emt 0:00:05]} 2. Nc3 {[%emt 0:00:06]} Bb4 {[%emt 0:00:05]} 3. Nd5 {[%emt 0:00:26]} Be7 {[%emt 0:00:37]} 4. Nf3 {[%emt 0:03:17]} d6 {[%emt 0:00:58]} 5. g3 {[%emt 0:03:47]} c6 {[%emt 0:00:33]} 6. Nxe7 {[%emt 0:01:45]} Nxe7 {[%emt 0:00:08]} 7. Bg2 {[%emt 0:00:12]} O-O {[%emt 0:00:34]} 8. O-O {[%emt 0:00:14]} f5 {[%emt 0:09:54]} 9. b3 {[%emt 0:07:35]} Nd7 {[%emt 0:02:46]} 10. Bb2 {[%emt 0:03:12]} Nf6 {[%emt 0:01:08] [#]} 11. c5 $1 {[%emt 0:07:10]} e4 {[%emt 0:01:14]} 12. cxd6 $1 {[%emt 0:01:14]} Qxd6 {[%emt 0:07:28]} 13. Ne5 {[%emt 0:02:02]} Ned5 {[%emt 0:07:18]} 14. Qc2 {[%emt 0:10:46]} a5 {[%emt 0:05:06]} 15. a3 {[%emt 0:03:30]} Be6 {[%emt 0:00:50][%cal Oa5a4]} 16. Rac1 {[%emt 0:07:19]} Kh8 {[%emt 0:04:29]} 17. f3 {[%emt 0:03:15]} exf3 {[%emt 0:02:33]} 18. Nxf3 {[%emt 0:01:14]} f4 {[%emt 0:01:25]} 19. Be5 {[%emt 0:06:25]} Qxa3 {[%emt 0:01:11]} 20. gxf4 {[%emt 0:00:09]} Nb4 {[%emt 0:02:55][%cal Bd5b4,Bb4a6,Ba6c7][%mdl 32]} 21. Qc5 {[%emt 0:01:34]} Bd5 {[%emt 0:04:54]} 22. Ra1 {[%emt 0:04:41] Black is weak on the dark squares} Qxb3 {[%emt 0:00:33]} 23. Rxa5 {[%emt 0:00:48] and Bd6 should not be overlooked} Na6 $1 {[%emt 0:01:54]} 24. Qc3 {[%emt 0:04:20]} Qxc3 {[%emt 0:02:10]} 25. Bxc3 {[%emt 0:00:21] A strong pair of Bishops.} b6 {[%emt 0:21:47]} 26. Ra3 {[%emt 0:08:41]} Nc7 {[%emt 0:01:07]} 27. Rfa1 {[%emt 0:01:39]} (27. Rxa8 $14 Rxa8 28. Ng5) 27... Rxa3 $11 {[%emt 0:00:42]} 28. Rxa3 {[%emt 0:00:01]} Nb5 {[%emt 0:07:58]} 29. Ra4 {[%emt 0:00:29]} Nxc3 {[%emt 0:01:19]} 30. dxc3 {[%emt 0:00:00][%cal Bd2c3,Bc3c4][%mdl 32]} Ne4 {[%emt 0:01:57]} 31. c4 {[%emt 0:00:58]} Nc3 {[%emt 0:00:10] Threatens to win with ...Bxf3.} 32. Rb4 {[%emt 0:08:08]} Nxe2+ {[%emt 0:00:21]} ({Much worse is} 32... Rxf4 33. Rxb6 Bg8 (33... Nxe2+ $2 {is the wrong capture.} 34. Kf2 $18) (33... Bxc4 34. Rxc6 Nxe2+ 35. Kf2 $11) (33... Rxc4 $2 34. Ne5 $18) 34. Kf2 $11) 33. Kf2 {[%emt 0:00:07]} Nxf4 {[%emt 0:01:57]} 34. Rxb6 {[%emt 0:06:29]} Bxc4 {[%emt 0:06:23]} 35. Rxc6 {[%emt 0:02:36]} Bd5 {[%emt 0:00:05]} 36. Rc3 {[%emt 0:01:41]} g5 {[%emt 0:00:16] Black is more active.} 37. Bf1 {[%emt 0:01:49]} g4 {[%emt 0:00:37]} 38. Ne5 $2 {[%emt 0:00:13][%mdl 8192]} (38. Nd2 $15) 38... Nd3+ $19 {[%emt 0:04:03]} 39. Ke3 {[%emt 0:00:58]} Nxe5 {[%emt 0:00:00]} 40. Kd4 {[%emt 0:00:21]} Rxf1 {[%emt 0:00:00]} 41. Kxe5 {[%emt 0:30:30]} Bf7 {[%emt 0:28:14]} 0-1

[Event "LEM Niedersachsen-A-Open 2025"]
[Site "Verden"]
[Date "2025.01.04"]
[Round "6.10"]
[White "Stoy, Ulf"]
[Black "Renner, Kai"]
[Result "1/2-1/2"]
[ECO "A10"]
[WhiteElo "1918"]
[BlackElo "2080"]
[Annotator "NA RC"]
[PlyCount "48"]
[EventDate "2024.12.27"]
[EventType "swiss"]
[EventCountry "GER"]
[SourceTitle "playchess.com"]
[Source "ChessBase"]
[SourceQuality "1"]
[TimeControl "40/5400+30:1800+30"]

1. c4 {[%emt 1:31:00]} f5 {[%emt 1:31:00]} 2. g3 {[%emt 0:00:00]} Nf6 {[%emt 0:00:00]} 3. Bg2 {[%emt 0:00:00]} g6 {[%emt 0:00:00]} 4. Nc3 {[%emt 0:00:00]} Bg7 {[%emt 0:00:00]} 5. d3 {[%emt 0:00:00]} O-O {[%emt 0:00:00]} 6. e4 {[%emt 0:00:00]} fxe4 {[%emt 0:00:00]} 7. dxe4 {[%emt 0:00:00]} d6 {[%emt 0:00:00]} 8. Nge2 {[%emt 0:00:00]} c5 {[%emt 0:00:00]} 9. O-O {[%emt 0:00:00]} Nc6 {[%emt 0:00:00]} 10. h3 {[%emt 0:00:00]} Be6 {[%emt 0:00:00]} 11. Nd5 {[%emt 0:00:00]} Qd7 {[%emt 0:00:00]} 12. Kh2 {[%emt 0:00:00]} Rab8 {[%emt 0:00:00]} 13. f4 {[%emt 0:00:00]} b5 {[%emt 0:00:00]} 14. cxb5 {[%emt 0:00:00]} Rxb5 {[%emt 0:00:00]} 15. Nec3 {[%emt 0:00:00]} Rbb8 {[%emt 0:00:00]} 16. Rf2 {[%emt 0:00:00]} Nd4 {[%emt 0:00:00]} 17. g4 {[%emt 0:00:00]} Bf7 {[%emt 0:00:00]} 18. Qd3 {[%emt 0:00:00]} e6 {[%emt 0:00:00]} 19. Nxf6+ {[%emt 0:00:00]} Bxf6 {[%emt 0:00:00]} 20. Qg3 {[%emt 0:00:00]} Qd8 {[%emt 0:00:00]} 21. Qd3 {[%emt 0:00:00]} Bh4 {[%emt 0:00:00]} 22. Rf1 {[%emt 0:00:00]} e5 {[%emt 0:00:00]} 23. fxe5 {[%emt 0:00:00]} dxe5 {[%emt 0:00:00]} 24. Bh6 {[%emt 0:00:00]} Re8 {[%emt 0:00:00]} 1/2-1/2

[Event "LEM Niedersachsen-A-Open 2025"]
[Site "Verden"]
[Date "2025.01.04"]
[Round "6.11"]
[White "Thieu, Nguyen Gia Bao"]
[Black "Schumann, Steffen"]
[Result "1/2-1/2"]
[ECO "B22"]
[WhiteElo "1898"]
[BlackElo "2002"]
[Annotator "NA RC"]
[PlyCount "80"]
[EventDate "2024.12.27"]
[EventType "swiss"]
[EventCountry "GER"]
[SourceTitle "playchess.com"]
[Source "ChessBase"]
[SourceQuality "1"]
[TimeControl "40/5400+30:1800+30"]

1. e4 {[%emt 0:00:03]} c5 {[%emt 0:00:02]} 2. c3 {[%emt 0:00:08]} Nf6 {[%emt 0:00:04]} 3. e5 {[%emt 0:00:05]} Nd5 {[%emt 0:00:03]} 4. Bc4 {[%emt 0:00:04]} e6 {[%emt 0:02:57]} 5. Nf3 {[%emt 0:00:35]} Nc6 {[%emt 0:00:29]} 6. d4 {[%emt 0:00:43]} cxd4 {[%emt 0:00:09]} 7. cxd4 {[%emt 0:00:06]} d6 {[%emt 0:01:32]} 8. O-O {[%emt 0:00:46]} Be7 {[%emt 0:00:10]} 9. Qe2 {[%emt 0:00:10]} O-O {[%emt 0:00:18]} 10. Qe4 {[%emt 0:01:40]} Nb6 {[%emt 0:12:29]} 11. Bb3 {[%emt 0:00:09]} d5 {[%emt 0:02:19]} 12. Qd3 {[%emt 0:04:13]} Bd7 {[%emt 0:04:12]} 13. Bc2 {[%emt 0:03:15]} g6 {[%emt 0:00:07]} 14. a3 {[%emt 0:00:04]} f6 {[%emt 0:03:18]} 15. exf6 {[%emt 0:00:27]} Bxf6 {[%emt 0:00:07]} 16. Re1 {[%emt 0:07:38]} Rc8 {[%emt 0:02:09]} 17. Nc3 {[%emt 0:02:27]} Nc4 {[%emt 0:03:58]} 18. Rb1 {[%emt 0:11:43]} Nd6 {[%emt 0:06:09]} 19. Bf4 {[%emt 0:07:30]} Nf5 {[%emt 0:00:09]} 20. Be5 {[%emt 0:01:21]} Bxe5 {[%emt 0:09:36]} 21. dxe5 {[%emt 0:00:31]} Nh4 {[%emt 0:03:46]} 22. Nxh4 {[%emt 0:03:06]} Qxh4 {[%emt 0:00:03]} 23. g3 {[%emt 0:03:17]} Qd4 {[%emt 0:09:51]} 24. Qxd4 {[%emt 0:20:02]} Nxd4 {[%emt 0:00:02]} 25. Bd1 {[%emt 0:00:13]} b5 {[%emt 0:02:40]} 26. Bg4 {[%emt 0:04:34]} h5 {[%emt 0:09:22]} 27. Rbd1 {[%emt 0:11:07]} Rc4 {[%emt 0:02:07]} 28. Be2 {[%emt 0:01:50]} Nxe2+ {[%emt 0:03:14]} 29. Nxe2 {[%emt 0:01:31]} Rc2 {[%emt 0:01:23]} 30. Rb1 {[%emt 0:03:01]} Rd2 {[%emt 0:03:50]} 31. Kf1 {[%emt 0:02:02]} b4 {[%emt 0:01:28]} 32. Red1 {[%emt 0:01:57]} Rxd1+ {[%emt 0:09:29]} 33. Rxd1 {[%emt 0:00:05]} bxa3 {[%emt 0:02:39]} 34. bxa3 {[%emt 0:00:08]} Bb5 {[%emt 0:00:21]} 35. Rb1 {[%emt 0:01:23]} Bd3 {[%emt 0:02:58]} 36. Rb4 {[%emt 0:03:14]} Rf5 {[%emt 0:01:00]} 37. f4 {[%emt 0:00:13]} g5 {[%emt 0:01:30]} 38. Kf2 {[%emt 0:00:43]} Bxe2 {[%emt 0:00:08]} 39. Kxe2 {[%emt 0:00:06]} gxf4 {[%emt 0:00:25]} 40. gxf4 {[%emt 0:00:01]} Kg7 {[%emt 0:02:13]} 1/2-1/2

[Event "LEM Niedersachsen-A-Open 2025"]
[Site "Verden"]
[Date "2025.01.04"]
[Round "6.13"]
[White "Boerma, Daniel"]
[Black "Holtwessels, Jan"]
[Result "1-0"]
[ECO "C44"]
[WhiteElo "1958"]
[BlackElo "1812"]
[Annotator "NA RC"]
[PlyCount "83"]
[EventDate "2024.12.27"]
[EventType "swiss"]
[EventCountry "GER"]
[SourceTitle "playchess.com"]
[Source "ChessBase"]
[SourceQuality "1"]
[TimeControl "40/5400+30:1800+30"]

1. e4 {[%emt 0:00:03]} Nc6 {[%emt 0:00:03]} 2. d3 {[%emt 0:01:47]} e5 {[%emt 0:00:55]} 3. Nf3 {[%emt 0:00:50]} Nf6 {[%emt 0:01:13]} 4. g3 {[%emt 0:00:07]} Bc5 {[%emt 0:02:32]} 5. Bg2 {[%emt 0:00:27]} d6 {[%emt 0:01:04]} 6. O-O {[%emt 0:00:13]} Bg4 {[%emt 0:01:00]} 7. h3 {[%emt 0:00:36]} Bxf3 {[%emt 0:01:44]} 8. Bxf3 {[%emt 0:00:11]} Qd7 {[%emt 0:03:07]} 9. Bg2 {[%emt 0:00:09]} O-O {[%emt 0:02:37]} 10. Kh2 {[%emt 0:00:33]} Ne8 {[%emt 0:05:28]} 11. f4 {[%emt 0:00:17]} exf4 {[%emt 0:01:44]} 12. Bxf4 {[%emt 0:00:28]} f5 {[%emt 0:01:09]} 13. Nc3 {[%emt 0:02:14]} Bb6 {[%emt 0:05:20]} 14. Nd5 {[%emt 0:00:32]} fxe4 {[%emt 0:04:29]} 15. Nxb6 {[%emt 0:00:56]} axb6 {[%emt 0:00:25]} 16. dxe4 {[%emt 0:01:16]} Nf6 {[%emt 0:02:43]} 17. g4 {[%emt 0:02:33]} Qe7 {[%emt 0:02:04]} 18. g5 {[%emt 0:01:20]} Nd7 {[%emt 0:00:57]} 19. c3 {[%emt 0:01:28]} Nde5 {[%emt 0:02:25]} 20. Qd5+ {[%emt 0:04:59]} Kh8 {[%emt 0:03:50]} 21. b4 {[%emt 0:03:19]} Ng6 {[%emt 0:10:01]} 22. Bg3 {[%emt 0:00:32]} Rae8 {[%emt 0:01:56]} 23. Rxf8+ {[%emt 0:02:00]} Rxf8 {[%emt 0:01:01]} 24. Rf1 {[%emt 0:00:36]} Rxf1 {[%emt 0:03:20]} 25. Bxf1 {[%emt 0:00:26]} Qf8 {[%emt 0:02:00]} 26. Qf5 {[%emt 0:04:45]} Qa8 {[%emt 0:05:19]} 27. Bc4 {[%emt 0:04:09]} Nce5 {[%emt 0:02:04]} 28. Bb3 {[%emt 0:01:03]} Qe8 {[%emt 0:08:45]} 29. Kg2 {[%emt 0:06:22]} Nd3 {[%emt 0:04:20]} 30. Kf1 {[%emt 0:06:41]} Nge5 {[%emt 0:01:20]} 31. h4 {[%emt 0:04:22]} h6 {[%emt 0:04:09]} 32. gxh6 {[%emt 0:00:51]} gxh6 {[%emt 0:00:14]} 33. Qf6+ {[%emt 0:09:06]} Kh7 {[%emt 0:00:18]} 34. Be6 {[%emt 0:01:11]} h5 {[%emt 0:04:25]} 35. Ke2 {[%emt 0:05:29]} Qb5 {[%emt 0:04:13]} 36. Qe7+ {[%emt 0:02:39]} Kh6 {[%emt 0:02:00]} 37. Qf8+ {[%emt 0:00:35]} Kh7 {[%emt 0:00:41]} 38. Bf5+ {[%emt 0:02:41]} Ng6 {[%emt 0:00:07]} 39. Bxg6+ {[%emt 0:00:12]} Kxg6 {[%emt 0:00:16]} 40. Qf5+ {[%emt 0:00:07]} Qxf5 {[%emt 0:00:53]} 41. exf5+ {[%emt 0:30:05]} Kxf5 {[%emt 0:30:03]} 42. Kxd3 {[%emt 0:00:09]} 1-0

[Event "LEM Niedersachsen-A-Open 2025"]
[Site "Verden"]
[Date "2025.01.04"]
[Round "6.14"]
[White "Oblender, Rudi"]
[Black "Belakhin, Alexander"]
[Result "1/2-1/2"]
[ECO "B07"]
[WhiteElo "1779"]
[BlackElo "1945"]
[Annotator "NA RC"]
[PlyCount "66"]
[EventDate "2024.12.27"]
[EventType "swiss"]
[EventCountry "GER"]
[SourceTitle "playchess.com"]
[Source "ChessBase"]
[SourceQuality "1"]
[TimeControl "40/5400+30:1800+30"]

1. e4 {[%emt 0:00:03]} d6 {[%emt 0:00:36]} 2. Nf3 {[%emt 0:00:06]} Nf6 {[%emt 0:00:27]} 3. Nc3 {[%emt 0:00:50]} c6 {[%emt 0:01:36]} 4. d4 {[%emt 0:00:28]} Bg4 {[%emt 0:00:09]} 5. Be2 {[%emt 0:01:11]} e6 {[%emt 0:00:21]} 6. h3 {[%emt 0:00:19]} Bh5 {[%emt 0:00:06]} 7. Bg5 {[%emt 0:00:33]} Be7 {[%emt 0:00:17]} 8. Qd2 {[%emt 0:00:26]} d5 {[%emt 0:06:36]} 9. exd5 {[%emt 0:07:49]} Nxd5 {[%emt 0:02:26]} 10. Nxd5 {[%emt 0:01:55]} exd5 {[%emt 0:08:22]} 11. Bxe7 {[%emt 0:00:24]} Qxe7 {[%emt 0:00:26]} 12. O-O-O {[%emt 0:06:35]} Nd7 {[%emt 0:08:56]} 13. g4 {[%emt 0:02:04]} Bg6 {[%emt 0:00:21]} 14. Ne5 {[%emt 0:00:16]} Nxe5 {[%emt 0:05:04]} 15. dxe5 {[%emt 0:00:08]} Qc5 {[%emt 0:01:40]} 16. f4 {[%emt 0:00:24]} Be4 {[%emt 0:00:58]} 17. Rhg1 {[%emt 0:03:49]} O-O-O {[%emt 0:03:28]} 18. Rg3 {[%emt 0:00:15]} d4 {[%emt 0:08:43]} 19. Bf3 {[%emt 0:01:48]} Bd5 {[%emt 0:04:40]} 20. Bxd5 {[%emt 0:00:27]} Rxd5 {[%emt 0:00:57]} 21. Qd3 {[%emt 0:03:39]} g6 {[%emt 0:01:50]} 22. Qa3 {[%emt 0:00:17]} Rhd8 {[%emt 0:04:41]} 23. Qxc5 {[%emt 0:01:02]} Rxc5 {[%emt 0:00:02]} 24. Rgd3 {[%emt 0:00:07]} Rcd5 {[%emt 0:00:56]} 25. Kd2 {[%emt 0:01:50]} Kd7 {[%emt 0:06:13]} 26. Ke2 {[%emt 0:00:38]} Ke6 {[%emt 0:00:40]} 27. Kf3 {[%emt 0:01:38]} g5 {[%emt 0:01:54]} 28. fxg5 {[%emt 0:01:54]} c5 {[%emt 0:06:22]} 29. Kf4 {[%emt 0:09:15]} Rxe5 {[%emt 0:05:05]} 30. c3 {[%emt 0:01:33]} Re2 {[%emt 0:01:54]} 31. cxd4 {[%emt 0:05:11]} Rxd4+ {[%emt 0:02:31]} 32. Rxd4 {[%emt 0:01:11]} cxd4 {[%emt 0:00:07]} 33. Rxd4 {[%emt 0:00:21]} Rf2+ {[%emt 0:00:35]} 1/2-1/2

[Event "LEM Niedersachsen-A-Open 2025"]
[Site "Verden"]
[Date "2025.01.04"]
[Round "6.15"]
[White "Zweigait, Leon"]
[Black "Lebiedz, Oliver"]
[Result "0-1"]
[ECO "B45"]
[WhiteElo "1865"]
[BlackElo "1939"]
[Annotator "NA RC"]
[PlyCount "96"]
[EventDate "2024.12.27"]
[EventType "swiss"]
[EventCountry "GER"]
[SourceTitle "playchess.com"]
[Source "ChessBase"]
[SourceQuality "1"]
[TimeControl "40/5400+30:1800+30"]

1. e4 {[%emt 0:00:02]} c5 {[%emt 0:00:05]} 2. Nf3 {[%emt 0:00:05]} e6 {[%emt 0:00:07]} 3. d4 {[%emt 0:00:13]} cxd4 {[%emt 0:00:05]} 4. Nxd4 {[%emt 0:00:06]} Nf6 {[%emt 0:00:05]} 5. Nc3 {[%emt 0:00:07]} Nc6 {[%emt 0:00:03]} 6. Ndb5 {[%emt 0:00:25]} Bc5 {[%emt 0:00:29]} 7. Bf4 {[%emt 0:00:20]} e5 {[%emt 0:07:19]} 8. Bg5 {[%emt 0:00:30]} d6 {[%emt 0:01:15]} 9. a4 {[%emt 0:07:14]} a6 {[%emt 0:02:00]} 10. Na3 {[%emt 0:00:07]} Qb6 {[%emt 0:07:35]} 11. Nc4 {[%emt 0:06:29]} Bxf2+ {[%emt 0:02:31]} 12. Kd2 {[%emt 0:00:23]} Qd4+ {[%emt 0:00:30]} 13. Kc1 {[%emt 0:07:07]} Qxd1+ {[%emt 0:01:49]} 14. Kxd1 {[%emt 0:00:14]} O-O {[%emt 0:08:28]} 15. Bxf6 {[%emt 0:04:50]} gxf6 {[%emt 0:00:22]} 16. Bd3 {[%emt 0:01:41]} Nb4 {[%emt 0:12:27]} 17. Rf1 {[%emt 0:00:32]} Nxd3 {[%emt 0:02:12]} 18. cxd3 {[%emt 0:03:02]} Bc5 {[%emt 0:01:29]} 19. Rxf6 {[%emt 0:00:09]} Kg7 {[%emt 0:00:06]} 20. Rf1 {[%emt 0:01:07]} Be6 {[%emt 0:04:45]} 21. Ke2 {[%emt 0:01:28]} f5 {[%emt 0:06:50]} 22. exf5 {[%emt 0:01:26]} Bxf5 {[%emt 0:01:33]} 23. Rab1 {[%emt 0:04:29]} d5 {[%emt 0:03:11]} 24. Nd2 {[%emt 0:05:28]} Bg4+ {[%emt 0:02:48]} 25. Nf3 {[%emt 0:01:04]} Rae8 {[%emt 0:02:29]} 26. h3 {[%emt 0:01:47]} e4 {[%emt 0:02:23]} 27. dxe4 {[%emt 0:04:55]} dxe4 {[%emt 0:00:13]} 28. hxg4 {[%emt 0:01:14]} exf3+ {[%emt 0:00:05]} 29. Kd3 {[%emt 0:00:52]} fxg2 {[%emt 0:00:26]} 30. Rfc1 {[%emt 0:01:37]} g1=Q {[%emt 0:03:08]} 31. Rxg1 {[%emt 0:00:04]} Bxg1 32. Rxg1 {[%emt 0:00:02]} Rf4 {[%emt 0:02:07]} 33. b3 {[%emt 0:01:17]} Rf3+ {[%emt 0:00:45]} 34. Kd4 {[%emt 0:01:06]} Rd8+ {[%emt 0:00:54]} 35. Nd5 {[%emt 0:00:07]} Rxb3 {[%emt 0:00:15]} 36. Rc1 {[%emt 0:00:28]} Rd7 {[%emt 0:03:05]} 37. Ke5 {[%emt 0:00:13]} b5 {[%emt 0:03:36]} 38. Ke6 {[%emt 0:00:19]} Rf7 {[%emt 0:02:22]} 39. axb5 {[%emt 0:00:10]} Rxb5 {[%emt 0:02:28]} 40. Rc6 {[%emt 0:00:38]} Ra7 {[%emt 0:06:26]} 41. Nc7 {[%emt 0:31:43]} Rg5 {[%emt 0:31:03]} 42. Rc4 {[%emt 0:01:21]} a5 {[%emt 0:00:39]} 43. Ne8+ {[%emt 0:00:34]} Kf8 {[%emt 0:01:46]} 44. Nc7 {[%emt 0:03:17]} Rg6+ {[%emt 0:01:05]} 45. Kf5 {[%emt 0:01:06]} a4 {[%emt 0:01:06]} 46. Nb5 {[%emt 0:03:32]} Ra5 {[%emt 0:01:00]} 47. Rc8+ {[%emt 0:00:06]} Kg7 {[%emt 0:00:21]} 48. Rc7+ {[%emt 0:00:05]} Kh6 {[%emt 0:00:18]} 0-1